bitfinex/quotes_BTCUSD_20250303
["timestamp","ask_amount","ask_price","bid_price","bid_amount"]
[1741038635910,0.3,86112.0,86099.0,0.0067284]
[1741038636108,0.05623857,86111.0,86099.0,0.0067284]
[1741038636333,0.3,86110.0,86099.0,0.0067284]
[1741038636510,0.3,86108.0,86099.0,0.0067284]
[1741038637390,0.3,86108.0,86098.0,0.02028402]
[1741038637595,0.05623857,86107.0,86098.0,0.02028402]
[1741038638368,0.63229,86099.0,86098.0,0.007284]
[1741038638589,0.63229,86099.0,86030.0,0.0761]
[1741038638590,0.85492731,86085.0,86030.0,0.0761]
[1741038638785,0.73235131,86076.0,86030.0,0.0761]
[1741038639000,4.80394035,86076.0,86030.0,0.0761]
[1741038639158,5.37831733,86076.0,86030.0,0.0761]
[1741038639359,5.36658657,86076.0,86030.0,0.0761]
[1741038639742,5.42282514,86076.0,86030.0,0.0761]
[1741038639943,0.232409,86055.0,86030.0,0.0761]
[1741038640126,1.660924,86055.0,86028.0,0.0001698]
[1741038640325,0.7775868,86055.0,86028.0,0.0001698]
[1741038640526,0.36629204,86055.0,86028.0,0.0001698]
[1741038640804,0.55093304,86055.0,86028.0,0.0001698]
[1741038640930,0.69038125,86055.0,86028.0,0.0001698]
[1741038641131,0.532479,86029.0,86028.0,0.0001698]
[1741038641383,1.08933904,86029.0,86028.0,0.0001698]
[1741038641708,1.0651087,86029.0,86028.0,0.0001698]
[1741038641916,1.12082608,86029.0,86028.0,0.0001698]
[1741038642096,1.09711738,86029.0,86028.0,0.0001698]
[1741038642590,1.09751331,86029.0,86028.0,0.0001698]
[1741038642771,1.15194288,86029.0,86028.0,0.0001698]
[1741038643151,1.15194288,86029.0,85996.0,7e-05]
[1741038643152,0.532555,86001.0,86000.0,0.0762106]
[1741038643350,5.650461,86001.0,86000.0,0.0762106]
[1741038643671,5.70705663,86001.0,86000.0,0.0762106]
[1741038643882,5.60209405,86001.0,86000.0,0.0762106]
[1741038644078,3.34066252,86001.0,86000.0,0.0762106]
[1741038644223,2.31041652,86001.0,86000.0,0.0762106]
[1741038644423,0.50895852,86001.0,86000.0,0.0762106]
[1741038644624,0.5093542,86001.0,86000.0,0.08383866]
[1741038644838,0.5093542,86001.0,86000.0,0.0762106]
[1741038645077,0.35611306,86001.0,86000.0,0.0762106]
[1741038645589,0.36311306,86001.0,86000.0,0.0762106]
[1741038645940,0.35611306,86001.0,86000.0,0.0762106]
[1741038646138,0.60052206,86001.0,86000.0,0.0762106]
[1741038646369,0.84007706,86001.0,86000.0,0.0762106]
[1741038646522,0.82041706,86001.0,86000.0,0.0762106]
[1741038647169,0.81341706,86001.0,86000.0,0.0762106]
[1741038647575,0.97600805,86001.0,86000.0,0.0762106]
[1741038647727,0.8613561,86001.0,86000.0,0.0762106]
[1741038648154,0.8613561,86001.0,85996.0,7e-05]
[1741038648155,0.232566,85997.0,85996.0,7e-05]
[1741038648354,5.60317104,85997.0,85996.0,7e-05]
[1741038648557,0.3,85990.0,85944.0,0.03767198]
[1741038648791,0.3,85990.0,85939.0,0.048]
[1741038648792,0.232672,85958.0,85939.0,0.048]
[1741038648930,0.3,85946.0,85939.0,0.048]
[1741038649132,0.3,85944.0,85939.0,0.048]
[1741038649466,0.035037,85951.0,85939.0,0.048]
[1741038649846,0.05571738,85943.0,85940.0,0.0148]
[1741038650052,0.05571738,85943.0,85942.0,0.1]
[1741038650272,0.05571738,85943.0,85940.0,0.1]
[1741038650473,0.05571738,85943.0,85939.0,0.048]
[1741038650636,0.3,85941.0,85939.0,0.048]
[1741038650837,0.3,85941.0,85923.0,0.1]
[1741038651058,0.3,85941.0,85924.0,0.02453]
[1741038651748,0.05571738,85940.0,85925.0,0.0828]
[1741038652363,0.3,85938.0,85925.0,0.0828]
[1741038652544,0.3,85936.0,85925.0,0.0828]
[1741038652751,0.3,85934.0,85925.0,0.0828]
[1741038652953,0.3,85932.0,85925.0,0.0828]
[1741038653183,0.3,85932.0,85925.0,0.09561]
[1741038653397,0.3,85932.0,85925.0,0.0828]
[1741038653527,0.3,85932.0,85922.0,0.0453]
[1741038653725,0.3,85932.0,85858.0,0.02305297]
[1741038653726,0.3,85930.0,85903.0,0.0474699]
[1741038653939,0.532788,85915.0,85903.0,0.0474699]
[1741038654138,0.532788,85915.0,85903.0,0.0001699]
[1741038654347,0.3,85915.0,85888.0,24.9630508]
[1741038654657,0.232858,85889.0,85888.0,24.45051026]
[1741038654870,0.504294,85889.0,85888.0,24.45051026]
[1741038655020,0.25521425,85914.0,85888.0,24.45051026]
[1741038655223,5.120506,85913.0,85888.0,24.45051026]
[1741038655422,0.3,85911.0,85889.0,0.11465195]
[1741038655677,0.3,85904.0,85888.0,24.52681026]
[1741038655838,0.3,85902.0,85888.0,24.52681026]
[1741038656039,0.3,85902.0,85888.0,24.45051026]
[1741038656040,0.532858,85889.0,85888.0,24.45051026]
[1741038656450,1.454136,85889.0,85888.0,24.45051026]
[1741038656649,0.532858,85889.0,85888.0,24.45051026]
[1741038657053,4.541603,85889.0,85888.0,24.45051026]
[1741038657253,4.65625495,85889.0,85888.0,22.90640203]
[1741038657486,4.548603,85889.0,85888.0,22.48064352]
[1741038657687,4.64909565,85889.0,85888.0,22.48064352]
[1741038658110,4.6764736,85889.0,85888.0,22.45164351]
[1741038658344,4.4436156,85889.0,85888.0,22.45164351]
[1741038658541,4.28497125,85889.0,85888.0,22.45164351]
[1741038658761,4.3355076,85889.0,85888.0,22.45164351]
[1741038659154,4.3425076,85889.0,85888.0,22.45164351]
[1741038659526,4.3705766,85889.0,85888.0,22.45164351]
[1741038659925,1.39773983,85889.0,85888.0,22.45164351]
[1741038660130,1.59865125,85889.0,85888.0,22.45164351]
[1741038660349,1.36579325,85889.0,85888.0,22.45164351]
[1741038660551,0.30366825,85889.0,85888.0,22.45164351]
[1741038660756,0.07033425,85889.0,85888.0,22.52754351]
[1741038660955,0.07033425,85889.0,85888.0,22.74219546]
[1741038661156,0.07033425,85889.0,85888.0,22.69169546]
[1741038661383,0.07033425,85889.0,85888.0,22.79169546]
[1741038661531,0.07033425,85889.0,85888.0,22.89169546]
[1741038661936,0.035049,85924.0,85903.0,0.1]
[1741038662145,5.022666,85913.0,85904.0,0.01]
[1741038662349,0.3,85912.0,85904.0,0.11]
[1741038662571,0.23276,85926.0,85904.0,0.11]
[1741038662572,5.022666,85911.0,85904.0,0.11]
[1741038662781,5.022666,85913.0,85904.0,0.01]
[1741038662974,5.022666,85913.0,85906.0,0.1]
[1741038663174,5.022666,85913.0,85908.0,0.1]
[1741038663379,0.035046,85932.0,85907.0,0.121]
[1741038663575,0.0182516,85933.0,85909.0,0.1]
[1741038663900,0.035044,85932.0,85913.0,0.0829]
[1741038664100,0.0182516,85933.0,85913.0,0.1829]
[1741038664254,0.0182516,85933.0,85913.0,0.21329]
[1741038664455,0.04793904,85941.0,85913.0,0.31329]
[1741038664862,0.01824864,85947.0,85913.0,0.35869]
[1741038665231,0.035041,85939.0,85913.0,0.35869]
[1741038665442,0.0154485,85957.0,85913.0,0.35869]
[1741038665595,0.035036,85946.0,85930.0,0.1]
[1741038665772,0.396095,85945.0,85932.0,0.1]
[1741038665974,0.396095,85945.0,85931.0,0.11]
[1741038666180,0.035036,85955.0,85932.0,0.1]
[1741038666396,0.3,85953.0,85934.0,0.1]
[1741038666603,5.022666,85952.0,85934.0,0.1]
[1741038666762,4.962591,85951.0,85945.0,0.1]
[1741038666964,5.022666,85974.0,85953.0,0.1]
[1741038667167,0.035027,85970.0,85956.0,0.0488]
[1741038667377,0.3,85968.0,85943.0,0.0759]
[1741038667591,0.3,85966.0,85943.0,0.1759]
[1741038667791,2.290583,85965.0,85944.0,0.02759]
[1741038668004,0.263049,85965.0,85947.0,0.1]
[1741038668207,0.232668,85960.0,85944.0,0.02759]
[1741038668415,2.417037,85959.0,85944.0,0.02759]
[1741038668627,0.3,85957.0,85944.0,0.02759]
[1741038668851,0.3,85955.0,85945.0,0.0288609]
[1741038669105,0.3,85953.0,85945.0,0.0288609]
[1741038669269,0.3,85951.0,85945.0,0.0288609]
[1741038669476,0.3,85951.0,85946.0,0.08499999]
[1741038669659,0.3,85951.0,85950.0,0.08499999]
[1741038669853,0.3,85951.0,85948.0,0.1]
[1741038670281,0.3234,85967.0,85957.0,0.08499999]
[1741038670497,0.664448,85966.0,85957.0,0.08499999]
[1741038670856,0.540006,85966.0,85957.0,0.08499999]
[1741038671058,0.3,85964.0,85947.0,0.02898799]
[1741038671215,0.3,85962.0,85943.0,0.07601898]
[1741038671411,0.3,85954.0,85943.0,0.07601898]
[1741038671664,0.3,85952.0,85943.0,0.07601898]
[1741038671864,0.3,85950.0,85943.0,0.07601898]
[1741038671980,0.3,85950.0,85945.0,0.08499999]
[1741038672192,0.3,85950.0,85943.0,0.07601898]
[1741038672816,0.3,85948.0,85943.0,0.02601898]
[1741038673022,0.3,85946.0,85936.0,0.04581897]
[1741038673223,0.3,85938.0,85917.0,0.1]
[1741038673526,0.3,85938.0,85902.0,0.10148]
[1741038673527,0.3,85934.0,85915.0,0.08499999]
[1741038673759,0.3,85932.0,85922.0,0.08499999]
[1741038674060,0.3,85932.0,85919.0,0.1]
[1741038674061,0.3,85932.0,85923.0,0.08499999]
[1741038674419,0.3,85932.0,85931.0,0.08499999]
[1741038674569,0.37892602,85937.0,85936.0,0.08499999]
[1741038674892,0.05552602,85937.0,85936.0,0.18499999]
[1741038675092,0.05552602,85937.0,85936.0,0.0185]
[1741038675298,0.05552602,85937.0,85932.0,0.08499999]
[1741038675473,0.05552602,85937.0,85929.0,0.1]
[1741038675677,0.05552602,85937.0,85934.0,0.08499999]
[1741038676079,0.05552602,85937.0,85936.0,0.08499999]
[1741038676277,0.3,85947.0,85944.0,0.08499999]
[1741038676478,0.00011854,85948.0,85945.0,0.10349999]
[1741038676682,0.00011854,85948.0,85947.0,0.08499999]
[1741038677439,0.00011854,85948.0,85936.0,0.1238]
[1741038677641,0.3,85947.0,85923.0,0.08499999]
[1741038677786,0.3,85946.0,85923.0,0.08499999]
[1741038677987,0.05572615,85948.0,85924.0,0.0085]
[1741038677988,0.3,85936.0,85924.0,0.0085]
[1741038678192,0.1136,85935.0,85924.0,0.06849998]
[1741038678394,0.169371,85944.0,85933.0,0.06849998]
[1741038678595,0.3,85943.0,85933.0,0.06849998]
[1741038678916,0.183231,85942.0,85933.0,0.06849998]
[1741038679100,0.00011854,85948.0,85937.0,0.06849998]
[1741038679301,0.3,85946.0,85941.0,0.06849998]
[1741038679501,0.00011854,85948.0,85947.0,0.06849998]
[1741038680103,0.0557573,85948.0,85947.0,0.16849998]
[1741038681222,0.0557573,85948.0,85941.0,0.0497]
[1741038681413,0.0557573,85948.0,85933.0,0.06849998]
[1741038681605,0.3,85946.0,85942.0,0.1]
[1741038681833,0.3,85945.0,85944.0,0.06849998]
[1741038681994,0.0557573,85948.0,85947.0,0.16849998]
[1741038682844,0.02151806,85948.0,85947.0,0.16849998]
[1741038683063,0.02151806,85948.0,85947.0,0.15549996]
[1741038683267,0.02151806,85948.0,85947.0,0.17104996]
[1741038683485,0.02151806,85948.0,85947.0,0.29614996]
[1741038684299,0.00011854,85948.0,85947.0,0.29614996]
[1741038684894,0.00011854,85948.0,85947.0,0.52885096]
[1741038685299,0.10168,85993.0,85972.0,0.06849998]
[1741038685457,0.3,85987.0,85973.0,0.01555]
[1741038685796,2.480446,85992.0,85973.0,0.01555]
[1741038685797,0.3,85985.0,85973.0,0.08404998]
[1741038685973,0.3,85985.0,85978.0,0.06849998]
[1741038686184,0.3,85985.0,85981.0,0.06849998]
[1741038686350,0.03502,85984.0,85981.0,0.06849998]
[1741038686547,0.3234,85992.0,85981.0,0.06849998]
[1741038686751,0.02137343,85983.0,85981.0,0.06849998]
[1741038686948,0.02137343,85983.0,85982.0,0.15764998]
[1741038687148,0.02137343,85983.0,85982.0,0.00685]
[1741038687550,0.02137343,85983.0,85982.0,0.06849998]
[1741038687998,0.02137343,85983.0,85982.0,0.15549996]
[1741038688332,0.02137343,85983.0,85982.0,0.12849996]
[1741038689145,0.02137343,85983.0,85978.0,0.04149998]
[1741038689346,0.02137343,85983.0,85981.0,0.08699998]
[1741038689550,0.02137343,85983.0,85981.0,0.01285]
[1741038689751,0.02137343,85983.0,85982.0,0.12849996]
[1741038690133,0.02137343,85983.0,85982.0,0.08699998]
[1741038690332,0.05569619,85983.0,85982.0,0.12849996]
[1741038691893,0.05603699,85983.0,85982.0,0.41010596]
[1741038692035,0.05603699,85983.0,85982.0,0.30205837]
[1741038692642,0.02171423,85983.0,85982.0,0.53466437]
[1741038692865,0.00011927,85993.0,85992.0,0.12849996]
[1741038693244,0.00011927,85993.0,85983.0,0.3215]
[1741038693444,0.00011927,85993.0,85992.0,0.12849996]
[1741038693806,0.3,85992.0,85971.0,0.0751]
[1741038693984,0.3,85992.0,85960.0,0.0467]
[1741038693985,0.3,85978.0,85960.0,0.0467]
[1741038694143,0.3,85975.0,85948.0,0.0751]
[1741038694347,0.3,85961.0,85948.0,0.0751]
[1741038694547,0.3,85959.0,85944.0,0.0467]
[1741038694749,0.3,85959.0,85945.0,0.014882]
[1741038694935,0.3,85959.0,85944.0,0.0467]
[1741038695159,0.195768,85958.0,85944.0,0.0467]
[1741038695366,0.195768,85958.0,85936.0,0.0752704]
[1741038695367,0.3,85957.0,85936.0,0.0752704]
[1741038695581,0.3,85973.0,85936.0,0.0752704]
[1741038695845,0.259657,85972.0,85936.0,0.07538894]
[1741038696217,0.03431462,85957.0,85937.0,0.00753889]
[1741038696407,0.3,85955.0,85937.0,0.00753889]
[1741038696678,0.3,85953.0,85937.0,0.00753889]
[1741038696918,0.193256,85952.0,85937.0,0.00753889]
[1741038697049,0.3,85953.0,85937.0,0.00753889]
[1741038697246,0.3,85953.0,85938.0,0.00831278]
[1741038697456,0.03431462,85951.0,85938.0,0.00831278]
[1741038697669,0.03431462,85951.0,85938.0,0.24103578]
[1741038697836,0.03431462,85951.0,85938.0,0.00831278]
[1741038698485,0.03431462,85951.0,85940.0,0.23272]
[1741038698663,0.03431462,85950.0,85941.0,0.04740487]
[1741038698859,0.03431462,85950.0,85941.0,0.28012087]
[1741038699061,0.03431462,85950.0,85941.0,0.04740487]
[1741038699283,0.03431462,85950.0,85940.0,0.232718]
[1741038699488,0.03431462,85950.0,85938.0,0.00831278]
[1741038699838,0.232598,85985.0,85938.0,0.00831278]
[1741038700043,0.258935,85984.0,85944.0,0.232707]
[1741038700213,0.229484,85983.0,85944.0,0.232707]
[1741038700430,0.266283,85984.0,85946.0,0.1284]
[1741038700657,0.12072181,85988.0,85947.0,0.00162856]
[1741038700876,0.06412031,85994.0,85948.0,0.3929044]
[1741038701049,0.06412031,85994.0,85969.0,0.0481]
[1741038701252,0.10335112,86007.0,85971.0,0.232636]
[1741038701467,0.10335112,86007.0,85972.0,0.0361036]
[1741038701813,0.3,86006.0,85975.0,0.232623]
[1741038701997,0.3,86006.0,85972.0,0.0361036]
[1741038702143,0.3,86006.0,85978.0,0.232615]
[1741038702546,0.00073824,86001.0,85978.0,0.232615]
[1741038702754,0.00073824,86001.0,85979.0,0.0232615]
[1741038702959,0.00073824,86001.0,85972.0,0.0361036]
[1741038703571,0.00073824,86001.0,85974.0,0.232626]
[1741038703770,0.00073824,86001.0,85975.0,0.00162824]
[1741038703968,0.00073824,86001.0,85975.0,0.31423264]
[1741038704171,0.00073824,86001.0,85975.0,0.3126044]
[1741038704374,0.00073824,86001.0,85976.0,0.0348708]
[1741038705004,0.00073824,86001.0,85977.0,0.00162822]
[1741038705231,0.00073824,86001.0,85976.0,0.2674928]
[1741038705232,0.00073824,86001.0,85976.0,0.0348708]
[1741038705643,0.649168,86000.0,85976.0,0.0348708]
[1741038705841,0.3,85999.0,85976.0,0.0348708]
[1741038706051,0.3,85999.0,85972.0,0.0362733]
[1741038706052,0.722985,85999.0,85977.0,0.03837485]
[1741038706200,0.3,85997.0,85972.0,0.0362733]
[1741038706401,0.3,85997.0,85972.0,0.0001697]
[1741038706402,0.3,85995.0,85972.0,0.0001697]
[1741038706601,0.3,85993.0,85972.0,0.0001697]
[1741038706807,0.3,85991.0,85972.0,0.0001697]
[1741038707013,0.3,85989.0,85972.0,0.0001697]
[1741038707384,0.00073824,86001.0,85972.0,0.0001697]
[1741038707556,0.300006,86000.0,85972.0,0.0001697]
[1741038707708,0.3,85999.0,85973.0,0.04654497]
[1741038707915,0.3,85999.0,85972.0,0.0001697]
[1741038707916,0.00073824,86001.0,85981.0,0.232607]
[1741038708119,0.00073824,86001.0,85975.0,0.232623]
[1741038708441,0.00073824,86001.0,85984.0,0.0493]
[1741038708818,0.00073824,86001.0,85986.0,0.232595]
[1741038709024,0.00073824,86001.0,85986.0,0.232593]
[1741038709236,0.00073824,86001.0,85987.0,0.2607793]
[1741038709446,0.00073824,86001.0,85987.0,0.0281893]
[1741038709767,0.00073824,86001.0,85984.0,0.0493]
[1741038711828,0.3,85999.0,85973.0,0.0816]
[1741038712035,0.3,85997.0,85973.0,0.0816]
[1741038712230,0.3,85997.0,85974.0,0.00162825]
[1741038712434,0.3,85997.0,85975.0,0.0316028]
[1741038712994,0.00073824,86001.0,85975.0,0.0316028]
[1741038713198,0.3,85999.0,85973.0,0.314229]
[1741038713397,0.3,85999.0,85973.0,0.0816]
[1741038713946,0.3,85997.0,85972.0,0.0001697]
[1741038714154,0.3,85995.0,85972.0,0.0001697]
[1741038714365,0.3,85993.0,85972.0,0.0001697]
[1741038715145,0.3,85993.0,85975.0,0.232623]
[1741038715342,0.3,85997.0,85973.0,0.25591137]
[1741038715548,0.3,85997.0,85975.0,0.232623]
[1741038715747,0.00073824,86001.0,85977.0,0.0756]
[1741038715996,0.00073824,86001.0,85978.0,0.00162799]
[1741038716187,0.00073824,86001.0,85987.0,0.232592]
[1741038716387,0.00073824,86001.0,85979.0,0.35391578]
[1741038716623,0.00073824,86001.0,85989.0,0.232586]
[1741038716793,0.00073824,86001.0,85987.0,0.232592]
[1741038716794,0.00073824,86001.0,85987.0,0.232591]
[1741038716941,0.00073824,86001.0,86000.0,0.232558]
[1741038717146,0.00073824,86001.0,86000.0,0.2558138]
[1741038719112,0.00073824,86001.0,86000.0,0.0232558]
[1741038719736,0.00073824,86001.0,85994.0,0.10238765]
[1741038720058,0.00073824,86001.0,85997.0,0.232563]
[1741038720425,0.00073824,86001.0,86000.0,0.232558]
[1741038720623,0.00073824,86001.0,86000.0,0.7701624]
[1741038720983,0.10335112,86015.0,86000.0,0.7701624]
[1741038720984,0.10335112,86015.0,86014.0,0.31062]
[1741038721164,0.10335112,86015.0,86014.0,0.6975387]
[1741038721323,0.10347036,86015.0,86014.0,0.4650187]
[1741038721942,0.00011924,86015.0,86014.0,0.4650187]
[1741038722129,0.00011924,86015.0,86014.0,0.3869187]
[1741038722302,0.00011924,86015.0,86014.0,0.6194387]
[1741038722483,0.00011924,86015.0,86014.0,0.3869187]
[1741038723995,0.232439,86044.0,86014.0,0.3869187]
[1741038724233,0.232448,86041.0,86015.0,0.08468825]
[1741038724397,0.363045,86040.0,86001.0,0.0785]
[1741038724742,0.232449,86041.0,86001.0,0.0785]
[1741038724920,0.232489,86026.0,86001.0,0.0785]
[1741038725250,0.232489,86026.0,85987.0,0.083]
[1741038725251,0.232503,86021.0,85987.0,0.083]
[1741038725402,0.3234,86026.0,85988.0,0.01303]
[1741038725403,0.342447,86020.0,85988.0,0.01303]
[1741038725653,0.334725,86025.0,85988.0,0.01303]
[1741038725863,0.179695,86024.0,85989.0,0.001628]
[1741038726073,0.3,86025.0,85992.0,0.232578]
[1741038726280,0.3,86023.0,85993.0,0.0330236]
[1741038726475,0.3,86021.0,85988.0,0.01303]
[1741038726682,0.3,86021.0,85989.0,0.001628]
[1741038726914,0.363815,86020.0,85988.0,0.01303]
[1741038727120,0.127987,86020.0,85988.0,0.01303]
[1741038727344,0.3,86021.0,85989.0,0.01139383]
[1741038727491,0.3,86019.0,85989.0,0.0097658]
[1741038727693,0.3,86025.0,85998.0,0.232563]
[1741038728104,0.3,86025.0,85990.0,0.00162787]
[1741038728105,0.3234,86039.0,85999.0,0.00162778]
[1741038728290,0.3234,86039.0,86009.0,0.0832]
[1741038728575,0.3,86038.0,86010.0,0.00832]
[1741038728733,0.3234,86039.0,86010.0,0.00832]
[1741038729319,0.3,86038.0,86010.0,0.00832]
[1741038729995,0.3237394,86039.0,86010.0,0.00832]
[1741038730188,0.0003394,86039.0,86011.0,0.04852751]
[1741038730503,0.0003394,86039.0,86012.0,0.42189959]
[1741038730807,0.0003394,86039.0,86016.0,0.232513]
[1741038731038,0.0003394,86039.0,86018.0,0.232509]
[1741038731204,0.0003394,86039.0,86016.0,0.232512]
[1741038731408,0.0003394,86039.0,86017.0,0.00162736]
[1741038731607,0.0003394,86039.0,86018.0,0.0888565]
[1741038732109,0.3,86037.0,86012.0,0.42189959]
[1741038732315,0.3,86035.0,86012.0,0.42189959]
[1741038732456,0.3,86033.0,86012.0,0.42189959]
[1741038732659,0.3,86031.0,86012.0,0.42189959]
[1741038733708,0.0003394,86039.0,86012.0,0.42189959]
[1741038733915,0.3,86037.0,86013.0,0.05603196]
[1741038734250,0.3,86035.0,86013.0,0.05603196]
[1741038734426,0.3,86033.0,86013.0,0.05603196]
[1741038734625,0.3,86031.0,86013.0,0.05603196]
[1741038735214,0.3,86029.0,86013.0,0.05603196]
[1741038735421,0.3,86029.0,85999.0,0.0764697]
[1741038735422,0.3,86019.0,85999.0,0.0001697]
[1741038735618,0.821143,86018.0,85999.0,0.0001697]
[1741038735823,5.022666,86027.0,85999.0,0.0001697]
[1741038736023,3.945477,86027.0,85999.0,0.0001697]
[1741038736335,0.232511,86018.0,85999.0,0.0001697]
[1741038736565,0.232546,86005.0,85999.0,0.0001697]
[1741038736731,0.781078,86004.0,85999.0,0.0001697]
[1741038736932,0.15066758,86003.0,85999.0,0.00028894]
[1741038737143,0.149859,86008.0,85999.0,0.00028894]
[1741038737340,0.3234,86016.0,85999.0,0.00028894]
[1741038737898,0.3,86015.0,85999.0,0.00028894]
[1741038738156,0.592613,86015.0,85999.0,0.00028894]
[1741038738328,0.3,86006.0,85999.0,0.00028894]
[1741038738532,0.976902,86014.0,85999.0,0.00028894]
[1741038738533,0.211893,86005.0,85999.0,0.00028894]
[1741038738732,0.3,86011.0,85999.0,0.00028894]
[1741038738930,0.02148894,86004.0,85999.0,0.00028894]
[1741038740379,0.02148894,86003.0,85999.0,0.00028894]
[1741038741953,0.05586973,86002.0,85999.0,0.00028894]
[1741038742771,0.3,86000.0,85999.0,0.00028894]
[1741038742980,1.101162,86000.0,85999.0,0.00028894]
[1741038743308,1.001538,86000.0,85999.0,0.00028894]
[1741038743492,0.76898,86000.0,85999.0,0.00028894]
[1741038743693,0.427558,86000.0,85999.0,0.00028894]
[1741038743871,0.3,86000.0,85999.0,0.00028894]
[1741038744079,0.02148894,86001.0,85999.0,0.00028894]
[1741038744297,0.14952094,86000.0,85999.0,0.00028894]
[1741038744884,0.02148894,86000.0,85999.0,0.00028894]
[1741038745491,0.49792394,86000.0,85999.0,0.00028894]
[1741038745669,0.44944394,86000.0,85999.0,0.00028894]
[1741038746111,0.52515194,86000.0,85999.0,0.00028894]
[1741038747233,1.08110994,86000.0,85999.0,0.00028894]
[1741038747379,0.84855194,86000.0,85999.0,0.00028894]
[1741038747573,0.3,85997.0,85963.0,0.05842834]
[1741038747798,0.3,85990.0,85964.0,0.00584283]
[1741038748002,0.3,85988.0,85964.0,0.00584283]
[1741038748220,0.3,85981.0,85964.0,0.00584283]
[1741038748422,0.3,85979.0,85964.0,0.00584283]
[1741038748619,0.3,85977.0,85964.0,0.00584283]
[1741038748963,0.3,85975.0,85965.0,0.00642712]
[1741038749234,0.3,85973.0,85965.0,0.00642712]
[1741038749437,0.3,85971.0,85965.0,0.00642712]
[1741038750244,0.405616,85970.0,85965.0,0.00642712]
[1741038750401,0.3,85969.0,85936.0,0.0495704]
[1741038750610,0.3,85966.0,85965.0,0.00039764]
[1741038750800,1.096274,85966.0,85965.0,0.00039764]
[1741038751122,0.3,85966.0,85965.0,0.00039764]
[1741038751726,0.02148894,85966.0,85965.0,0.00039764]
[1741038752129,0.02148894,85966.0,85965.0,0.00056734]
[1741038753822,0.02148894,85966.0,85965.0,0.0773]
[1741038754026,0.02148894,85966.0,85965.0,0.08979]
[1741038754477,0.10335112,85992.0,85965.0,0.08979]
[1741038754686,0.3,85991.0,85968.0,0.232642]
[1741038754890,0.00192478,85978.0,85969.0,0.0853248]
[1741038755094,0.00862574,85972.0,85971.0,0.232636]
[1741038755219,0.00862574,85972.0,85970.0,0.0777]
[1741038755423,0.00862574,85972.0,85971.0,0.0016281]
[1741038755939,0.00192478,85978.0,85972.0,0.1252]
[1741038756137,0.10335112,85992.0,85991.0,0.282382]
[1741038756359,0.10335112,85992.0,85991.0,0.1252]
[1741038756743,0.10335112,85992.0,85991.0,0.357782]
[1741038756941,0.40335112,85992.0,85991.0,0.1252]
[1741038757141,0.40335112,85992.0,85961.0,0.1]
[1741038757142,0.3,85978.0,85961.0,0.0824]
[1741038757416,0.3,85978.0,85951.0,0.048]
[1741038757417,0.3,85976.0,85951.0,0.0824]
[1741038757623,0.3,85976.0,85937.0,0.048]
[1741038757624,0.3,85973.0,85938.0,0.0824]
[1741038757779,0.3,85965.0,85938.0,0.0824]
[1741038757982,0.3,85963.0,85938.0,0.0824]
[1741038758248,0.3,85961.0,85939.0,0.01305704]
[1741038758409,0.3,85959.0,85939.0,0.01305704]
[1741038758608,0.3,85957.0,85939.0,0.01305704]
[1741038759008,0.3,85957.0,85939.0,0.01317558]
[1741038759430,0.232629,85974.0,85939.0,0.01317558]
[1741038759631,2.917708,85973.0,85940.0,0.0143746]
[1741038759836,0.361853,85977.0,85941.0,0.00162882]
[1741038760033,1.082165,85985.0,85941.0,0.00162882]
[1741038760213,1.117224,85985.0,85942.0,0.178]
[1741038760423,0.440313,85985.0,85960.0,0.0487]
[1741038760627,0.06416889,85986.0,85975.0,0.078]
[1741038761213,0.0003394,86004.0,85975.0,0.078]
[1741038761367,0.101329,86003.0,85975.0,0.078]
[1741038761567,0.0003394,86004.0,85979.0,0.232612]
[1741038761777,0.0003394,86004.0,85980.0,0.00162803]
[1741038761982,0.10335112,85989.0,85983.0,0.232602]
[1741038762182,0.10335112,85989.0,85985.0,0.232597]
[1741038762511,0.10335112,85989.0,85982.0,0.0476]
[1741038764413,0.10369072,85989.0,85982.0,0.0476]
[1741038764582,0.10369072,85989.0,85983.0,0.232601]
[1741038764789,0.10369072,85989.0,85984.0,0.28404491]
[1741038764988,0.10369072,85989.0,85984.0,0.05144391]
[1741038766027,0.0003396,85989.0,85984.0,0.05144391]
[1741038766270,0.3,85987.0,85984.0,0.05144391]
[1741038766705,0.0003396,85989.0,85984.0,0.05144391]
[1741038766911,0.720828,85988.0,85966.0,0.0758]
[1741038767476,0.673008,85988.0,85966.0,0.0758]
[1741038767759,1.476975,85988.0,85963.0,0.0001698]
[1741038768059,1.340481,85987.0,85963.0,0.0001698]
[1741038768232,1.663881,85987.0,85963.0,0.0001698]
[1741038768440,0.232643,85969.0,85963.0,0.0001698]
[1741038768620,0.3234,85987.0,85963.0,0.0001698]
[1741038768621,0.3,85964.0,85963.0,0.0001698]
[1741038769024,0.424898,85964.0,85963.0,0.0001698]
[1741038769244,0.3,85977.0,85963.0,0.0001698]
[1741038769460,0.3234,85987.0,85963.0,0.0001698]
[1741038769610,0.290614,85982.0,85963.0,0.0001698]
[1741038769811,0.33993136,85986.0,85963.0,0.0001698]
[1741038770145,0.3,85986.0,85963.0,0.00028889]
[1741038770311,0.3,85984.0,85963.0,0.00028889]
[1741038770509,0.3,85982.0,85963.0,0.00028889]
[1741038770746,0.262806,85981.0,85963.0,0.00028889]
[1741038771150,0.25123658,85981.0,85963.0,0.00028889]
[1741038771351,0.3,85980.0,85963.0,0.00028889]
[1741038771548,0.192006,85979.0,85963.0,0.00028889]
[1741038771747,0.0003396,85989.0,85964.0,0.0813]
[1741038771993,0.0003396,85989.0,85966.0,0.232649]
[1741038772341,0.3,85987.0,85965.0,0.03142449]
[1741038772614,0.3,85985.0,85964.0,0.0813]
[1741038772810,0.0003396,85989.0,85967.0,0.232645]
[1741038773016,0.0003396,85989.0,85969.0,0.0456]
[1741038774020,0.3,85987.0,85969.0,0.0456]
[1741038774228,0.0003396,85989.0,85970.0,0.01269]
[1741038774431,0.3,85987.0,85970.0,0.01269]